{"text_format":"3","workbook":"xlsx","n_sheets":3,"sheets":["Início","Portfólio","Alocação de Ativos"],"not_rendered":{"charts":1,"images":6,"defined_names":1},"read":"whole","date_system":"1900"}

{"sheet":"Início","index":0,"n_rows":29,"n_cols":2,"rows_kept":29}
["Controlador de Investimentos","Controlador de Investimentos"]
[]
["O modelo de Controlador de Investimentos permitirá que você acompanhe seus investimentos e alocação de ativos. O tipo de dados Ações do Excel manterá seu portfólio atualizado com os preços atuais e os detalhes de seus ativos. Há duas planilhas; Portfólio e Alocação de ativos, descritas abaixo. Observação: O tipo de dados Ações do Excel é um recurso somente de assinatura do Office 365. "]
[]
["Portfólio","Portfólio"]
["Adicione seus investimentos, símbolos dos tipos de ações, nomes de empresas ou fundos nos exemplos ou adicione mais nas linhas adicionais. Selecione uma categoria de ativos e insira o número de ações."]
["Clique no botão Adicionar coluna para adicionar mais colunas, como a Troca ou o Símbolo das ações."]
{"$rows_empty":13}
["Para atualizar os dados, clique em qualquer uma das ações. Na guia Dados, no grupo Consultas e conexões, clique em Atualizar tudo ou pressione Ctrl+Alt+F5."]
[]
[]
[]
[]
["Alocação de Ativos","Alocação de Ativos"]
[]
["Altere Categorias e Minha meta para personalizar seus objetivos de portfólio."]
["Quando uma categoria de ativos ultrapassar o Limite, os valores serão realçados em amarelo."]

{"sheet":"Portfólio","index":1,"n_rows":12,"n_cols":9,"rows_kept":12}
["Controlador de Investimentos","Controlador de Investimentos"]
[]
["Portfólio","Portfólio"]
[]
["Há uma tabela as ações existentes nas células B5:I11 e uma linha de totais na linha 12. Insira o nome da empresa nas células B5:B11 e vá até Dados > Atualizar ou pressione Ctrl+Alt+F5.","Empresa","Categoria","Ações","Preço","Alteração","Alteração (%)","Portfólio %","Valor"]
["Adicione seus investimentos, símbolos dos tipos de ações, nomes de empresas ou fundos nos exemplos ou adicione mais nas linhas adicionais.  Selecione uma categoria de ativos e insira o número de ações.",{"$error":"#VALUE!"},"Ações nos EUA",{"v":1200,"d":"1,200"},{"$f":"_FV(TabelaPortfólio[[#This Row],[Empresa]],\"Price\")","v":{"v":105.21,"d":"R$ 105.21"}},{"$f":"_FV(TabelaPortfólio[[#This Row],[Empresa]],\"Change\")","v":{"v":-0.24,"d":"-R$ 0.24"}},{"$f":"_FV(TabelaPortfólio[[#This Row],[Empresa]],\"Change (%)\",TRUE)","v":{"v":-0.002276,"d":"-0.23%"}},{"$f":"IFERROR(I6/SUBTOTAL(109,TabelaPortfólio[Valor]),\"\")","v":{"v":0.5974736139719061,"d":"60%"}},{"$f":"D6 * E6","v":{"v":126251.99999999999,"d":"R$ 126,252.00"}}]
["Clique no botão Adicionar coluna para adicionar mais colunas, como a Troca ou o Símbolo das ações.",{"$error":"#VALUE!"},"Títulos",{"v":1300,"d":"1,300"},{"$f":"_FV(TabelaPortfólio[[#This Row],[Empresa]],\"Price\")","v":{"v":10.46,"d":"R$ 10.46"}},{"$f":"_FV(TabelaPortfólio[[#This Row],[Empresa]],\"Change\")","v":{"v":0.0122760756111569,"d":"R$ 0.01"}},{"$f":"_FV(TabelaPortfólio[[#This Row],[Empresa]],\"Change (%)\",TRUE)","v":{"v":1.1749999999999998E-3,"d":"0.12%"}},{"$f":"IFERROR(I7/SUBTOTAL(109,TabelaPortfólio[Valor]),\"\")","v":{"v":0.06435102970875695,"d":"6%"}},{"v":13598.000000000002,"d":"R$ 13,598.00"}]
["Para atualizar os dados, clique em qualquer uma das ações. Na guia Dados, no grupo Consultas e conexões, clique em Atualizar tudo  ou pressione Ctrl+Alt+F5.",{"$error":"#VALUE!"},"Ações Internacionais",{"v":1200,"d":"1,200"},{"$f":"_FV(TabelaPortfólio[[#This Row],[Empresa]],\"Price\")","v":{"v":29.29,"d":"R$ 29.29"}},{"$f":"_FV(TabelaPortfólio[[#This Row],[Empresa]],\"Change\")","v":{"v":0.0699994333574489,"d":"R$ 0.07"}},{"$f":"_FV(TabelaPortfólio[[#This Row],[Empresa]],\"Change (%)\",TRUE)","v":{"v":0.0023956,"d":"0.24%"}},{"$f":"IFERROR(I8/SUBTOTAL(109,TabelaPortfólio[Valor]),\"\")","v":{"v":0.16633401913541615,"d":"17%"}},{"v":35148,"d":"R$ 35,148.00"}]
[null,{"$error":"#VALUE!"},"Dinheiro",{"v":10000,"d":"10,000"},{"$f":"_FV(TabelaPortfólio[[#This Row],[Empresa]],\"Price\")","v":{"v":1,"d":"R$ 1.00"}},{"$f":"_FV(TabelaPortfólio[[#This Row],[Empresa]],\"Change\")","v":0},{"$f":"_FV(TabelaPortfólio[[#This Row],[Empresa]],\"Change (%)\",TRUE)","v":{"v":0,"d":"0.00%"}},{"$f":"IFERROR(I9/SUBTOTAL(109,TabelaPortfólio[Valor]),\"\")","v":{"v":0.0473238930054103,"d":"5%"}},{"v":10000,"d":"R$ 10,000.00"}]
[null,{"$error":"#VALUE!"},"Imóveis",125,{"$f":"_FV(TabelaPortfólio[[#This Row],[Empresa]],\"Price\")","v":{"v":116.63,"d":"R$ 116.63"}},{"$f":"_FV(TabelaPortfólio[[#This Row],[Empresa]],\"Change\")","v":{"v":-0.249994620493774,"d":"-R$ 0.25"}},{"$f":"_FV(TabelaPortfólio[[#This Row],[Empresa]],\"Change (%)\",TRUE)","v":{"v":-2.1389E-3,"d":"-0.21%"}},{"$f":"IFERROR(I10/SUBTOTAL(109,TabelaPortfólio[Valor]),\"\")","v":{"v":0.06899232051526255,"d":"7%"}},{"v":14578.75,"d":"R$ 14,578.75"}]
[null,{"$error":"#VALUE!"},"Mercadorias",100,{"$f":"_FV(TabelaPortfólio[[#This Row],[Empresa]],\"Price\")","v":{"v":117.33,"d":"R$ 117.33"}},{"$f":"_FV(TabelaPortfólio[[#This Row],[Empresa]],\"Change\")","v":{"v":-0.27,"d":"-R$ 0.27"}},{"$f":"_FV(TabelaPortfólio[[#This Row],[Empresa]],\"Change (%)\",TRUE)","v":{"v":-0.002296,"d":"-0.23%"}},{"$f":"IFERROR(I11/SUBTOTAL(109,TabelaPortfólio[Valor]),\"\")","v":{"v":0.05552512366324791,"d":"6%"}},{"v":11733,"d":"R$ 11,733.00"}]
[null,"Total",{"$nulls":6},{"$f":"IFERROR(SUBTOTAL(109,TabelaPortfólio[Valor]), \"\")","v":{"v":211309.75,"d":"R$ 211,309.75"}}]

{"sheet":"Alocação de Ativos","index":2,"n_rows":25,"n_cols":7,"rows_kept":25}
["Controlador de Investimentos","Controlador de Investimentos"]
[]
["Alocação de Ativos","Alocação de Ativos"]
[]
[]
["Há um gráfico de barras que compara visualmente a porcentagem real de investimentos em cada categoria com as metas definidas na tabela abaixo, nas linhas 19 a 25."]
{"$rows_empty":12}
["Há uma tabela que calcula a porcentagem real de investimentos em cada categoria e os compara às metas.","Categoria","Minhas Metas","Real","Diferença","Limite","Valor"]
["A tabela preenche automaticamente as categorias de investimento da tabela Portfólio nas células B19:G25. Insira uma meta para cada categoria de investimento nas células C20:C25 e acesse Dados > Atualizar ou pressione Ctrl+Alt+F5. ","Ações nos EUA",{"v":0.55,"d":"55%"},{"$f":"IFERROR(G20/SUBTOTAL(109,TabelaAlocaçãoDeAtivos[Valor]),\"\")","v":{"v":0.5974736139719061,"d":"60%"}},{"$f":"D20 - C20","v":{"v":0.04747361397190608,"d":"5%"}},{"$f":"MIN(5%, $C20 * 25%)","v":{"v":0.05,"d":"5%"}},{"$f":"SUMIF(TabelaPortfólio[Categoria], B20, TabelaPortfólio[Valor])","v":{"v":126251.99999999999,"d":"R$ 126,252.00"}}]
["Quando uma categoria de ativos ultrapassar o Limite, os valores serão realçados em amarelo.","Ações Internacionais",{"v":0.2,"d":"20%"},{"$f":"IFERROR(G21/SUBTOTAL(109,TabelaAlocaçãoDeAtivos[Valor]),\"\")","v":{"v":0.16633401913541615,"d":"17%"}},{"v":-0.03366598086458386,"d":"-3%"},{"v":0.05,"d":"5%"},{"$f":"SUMIF(TabelaPortfólio[Categoria], B21, TabelaPortfólio[Valor])","v":{"v":35148,"d":"R$ 35,148.00"}}]
[null,"Títulos",{"v":0.1,"d":"10%"},{"$f":"IFERROR(G22/SUBTOTAL(109,TabelaAlocaçãoDeAtivos[Valor]),\"\")","v":{"v":0.06435102970875695,"d":"6%"}},{"v":-0.03564897029124306,"d":"-4%"},{"v":0.025,"d":"3%"},{"$f":"SUMIF(TabelaPortfólio[Categoria], B22, TabelaPortfólio[Valor])","v":{"v":13598.000000000002,"d":"R$ 13,598.00"}}]
[null,"Dinheiro",{"v":0.05,"d":"5%"},{"$f":"IFERROR(G23/SUBTOTAL(109,TabelaAlocaçãoDeAtivos[Valor]),\"\")","v":{"v":0.0473238930054103,"d":"5%"}},{"v":-0.0026761069945897,"d":"-0%"},{"v":0.0125,"d":"1%"},{"$f":"SUMIF(TabelaPortfólio[Categoria], B23, TabelaPortfólio[Valor])","v":{"v":10000,"d":"R$ 10,000.00"}}]
[null,"Imóveis",{"v":0.05,"d":"5%"},{"$f":"IFERROR(G24/SUBTOTAL(109,TabelaAlocaçãoDeAtivos[Valor]),\"\")","v":{"v":0.06899232051526255,"d":"7%"}},{"v":0.018992320515262548,"d":"2%"},{"v":0.0125,"d":"1%"},{"$f":"SUMIF(TabelaPortfólio[Categoria], B24, TabelaPortfólio[Valor])","v":{"v":14578.75,"d":"R$ 14,578.75"}}]
[null,"Mercadorias",{"v":0.05,"d":"5%"},{"$f":"IFERROR(G25/SUBTOTAL(109,TabelaAlocaçãoDeAtivos[Valor]),\"\")","v":{"v":0.05552512366324791,"d":"6%"}},{"v":0.005525123663247908,"d":"1%"},{"v":0.0125,"d":"1%"},{"$f":"SUMIF(TabelaPortfólio[Categoria], B25, TabelaPortfólio[Valor])","v":{"v":11733,"d":"R$ 11,733.00"}}]